Workbook

Sheet Title
C1: Interactive Distribution Spreadsheet Tool to accompany
C3: Social Statistics in Action: A Canadian Introduction
C4: Andrea M. Noack
C6: Oxford University Press, 2018
C8: For more information, visit:
C9: https://www.oupcanada.com/catalog/9780199015214.html

Sheet Z-distribution
B1: AREA UNDER THE Z-DISTRIBUTION (STANDARD NORMAL DISTRIBUTION)
B3: Enter a z-score in the yellow highlighted cell (or cells) to find the area under the z-distribution (the standard normal distribution) that is to the left of a z-score, to the right of a z-score, or between two z-scores.
B5: The area to the left of: | G5: is: | H5: ='Z-dist-A'!H7 -> ← enter a z-score
B13: The area to the right of: | G13: is: | H13: ='Z-dist-A'!H9 -> ← enter a z-score
B21: The area between: | E21: and | G21: is: | H21: ='Z-dist-A'!H11 -> ← enter two z-scores

Sheet T-distribution
B1: AREA UNDER THE T-DISTRIBUTION
B3: First, enter the degrees of freedom in the green highlighted cell. Then, in the yellow highlighted cells, enter a t-statistic to find the corresponding p-value, or enter a p-value to find the corresponding t-statistic (critical value).
B5: Degrees of Freedom (df): | D5: =IF(ISNUMBER(C5),""," ← enter the degrees of freedom") -> ← enter the degrees of freedom
B7: TWO-TAILED TEST (USE IN MOST SITUATIONS)
B8: A t-statistic of : | D8: has a p-value of: | E8: ='T-dist-A'!H9 -> ← enter a t-statistic & df ↑
B16: To obtain a p-value less than: | D16: obtain a t-statistic beyond: | E16: ='T-dist-A'!$H$11 -> ← enter a p-value & df ↑
B25: ONE-TAILED TEST (RIGHT-TAILED, USE IN RARE SITUATIONS)
B26: A t-statistic of : | D26: has a p-value of: | E26: ='T-dist-A'!$H$13 -> ← enter a t-statistic & df ↑
B34: To obtain a p-value less than: | D34: obtain a t-statistic higher than: | E34: ='T-dist-A'!$H$15 -> ← enter a p-value & df ↑

Sheet F-distribution
B1: AREA UNDER THE F-DISTRIBUTION
B3: First, enter the between group and within group degrees of freedom in the green highlighted cells. Then, in the yellow highlighed cells, enter an F-statistic to find the corresponding p-value, or enter a p-value to find the corresponding F-statistic (critical value).
B5: Between Group Degrees of Freedom (df1): | D5: =IF(ISNUMBER(C5),""," ← enter the between group degrees of freedom") -> ← enter the between group degrees of freedom
B7: Within Group Degrees of Freedom (df2): | D7: =IF(ISNUMBER(C7),""," ← enter the within group degrees of freedom") -> ← enter the within group degrees of freedom
B9: An F-statistic of: | D9: has a p-value of: | E9: ='F-dist-A'!H11 -> ← enter an F-statistic & df ↑
B17: To obtain a p-value less than: | D17: obtain an F-statistic higher than: | E17: ='F-dist-A'!H13 -> ← enter a p-value & df ↑

Sheet Chi-square distribution
B1: AREA UNDER THE CHI-SQUARE DISTRIBUTION
B3: First, enter the degrees of freedom in the green highlighted cell. Then, in the yellow highlighted cells, enter a chi-square statistic to find the corresponding p-value, or enter a p-value to find the corresponding chi-square statistic (critical value).
B5: Degrees of Freedom (df): | D5: =IF(ISNUMBER(C5),""," <-enter the degrees of freedom") -> <-enter the degrees of freedom
B7: A chi-square statistic of : | D7: has a p-value of: | E7: ='Chi-square dist-A'!H9 -> ← enter a chi-square statistic & df ↑
B15: To obtain a p-value less than: | D15: obtain a chi-square statistic higher than: | E15: ='Chi-square dist-A'!H11 -> ← enter a p-value & df ↑

Sheet Z-dist-A (hidden)
B1: Z-DISTRIBUTION (STANDARD NORMAL DISTRIBUTION)
B3: Enter numbers in the yellow highlighted box (or boxes) to find the area under the z-distribution (the standard normal distribution) that is to the left of a z-score, to the right of a z-score, or between two z-scores.
B5: AREA UNDER THE Z-DISTRIBUTION
I6: =IF(ISNUMBER($D$7),_xlfn.NORM.S.DIST($D$7,TRUE),"") ->  | J6: =IF($I$6>0.999,">99.9",IF($I$6>0.0005,ROUND($I$6,3)*100,"<0.1")) -> >99.9
B7: The area to the left of: | D7: =IF(ISNUMBER('Z-distribution'!D5),'Z-distribution'!D5,"") ->  | G7: is: | H7: =IF(ISNUMBER(D7),CONCATENATE(I7," or ",J6,"%"),"← enter a z-score") -> ← enter a z-score | I7: =IF(I6>0.999,">0.999",IF(I6>0.0005,ROUND(I6,3),"<0.001")) -> >0.999 | J7: =IF(ISNUMBER(D7),CONCATENATE(J6,"% of the area under the standard normal curve is to the left of ",D7),"___% of the area under the standard normal curve is to the left of ___") -> ___% of the area under the standard normal curve is to the left of ___
I8: =IF(ISNUMBER($D$9),1-(_xlfn.NORM.S.DIST($D$9,TRUE)),"") ->  | J8: =IF($I$8>0.999,">99.9",IF($I$8>0.0005,ROUND($I$8,3)*100,"<0.1")) -> >99.9
B9: The area to the right of: | D9: =IF(ISNUMBER('Z-distribution'!D13),'Z-distribution'!D13,"") ->  | G9: is: | H9: =IF(ISNUMBER(D9),CONCATENATE(I9," or ",J8,"%"),"← enter a z-score") -> ← enter a z-score | I9: =IF(I8>0.999,">0.999",IF(I8>0.0005,ROUND(I8,3),"<0.001")) -> >0.999 | J9: =IF(ISNUMBER(D9),CONCATENATE(J8,"% of the area under the standard normal curve is to the right of ",D9),"___% of the area under the standard normal curve is to the right of ___") -> ___% of the area under the standard normal curve is to the right of ___
B11: The area between: | D11: =IF(AND(ISNUMBER('Z-distribution'!D21),ISNUMBER('Z-distribution'!F21)),'Z-distribution'!D21,"") ->  | E11: and | F11: =IF(AND(ISNUMBER('Z-distribution'!D21),ISNUMBER('Z-distribution'!F21)),'Z-distribution'!F21,"") ->  | G11: is: | H11: =IF(AND(ISNUMBER(D11),ISNUMBER(F11)),CONCATENATE(I11," or ",I13,"%"),"← enter two z-scores") -> ← enter two z-scores | I11: =IF(AND(ISNUMBER(D11),ISNUMBER(F11)),H14,"") ->  | J11: =IF(AND(ISNUMBER(D12),ISNUMBER(F12)),CONCATENATE(I13,"% of the area under the standard normal curve is between ",D12," and ",F12), "___% of the area under the standard normal curve is between ___ and ___") -> ___% of the area under the standard normal curve is between ___ and ___
D12: =IF(AND(ISNUMBER(D11),ISNUMBER(F11)),MIN(D11,F11),"") ->  | F12: =IF(AND(ISNUMBER(D11),ISNUMBER(F11)),MAX(D11,F11),"") -> 
D13: =IF(AND(ISNUMBER(D11),ISNUMBER(F11)),_xlfn.NORM.S.DIST(D12,TRUE),"") ->  | F13: =IF(AND(ISNUMBER(D11),ISNUMBER(F11)),1-(_xlfn.NORM.S.DIST(F12,TRUE)),"") ->  | H13: =IF(AND(ISNUMBER(D11),ISNUMBER(F11)),1-$D$13-$F$13,"") ->  | I13: =IF(D11=F11,"0",IF($H$13>0.999,">99.9",IF($H$13>0.0005,ROUND($H$13,3)*100,"<0.1"))) -> 0
H14: =IF(D11=F11,"0.00",IF(H13>0.999,">0.999",IF(H13>0.0005,ROUND(H13,3),"<0.001"))) -> 0.00
B16: -4 | C16: =_xlfn.NORM.S.DIST(B16,FALSE) -> 0.0001338302258 | D16: =IF(AND(ISNUMBER($D$7),$D$7>=B16),_xlfn.NORM.S.DIST(B16,FALSE),NA()) ->  | E16: =IF(AND(ISNUMBER($D$9),$D$9<=B16),_xlfn.NORM.S.DIST(B16,FALSE),NA()) ->  | F16: =IF(AND(ISNUMBER($D$12),ISNUMBER($F$12),$D$12<=B16,$F$12>=B16),_xlfn.NORM.S.DIST(B16,FALSE),NA()) -> 
B17: =B16+0.01 -> -3.99 | C17: =_xlfn.NORM.S.DIST(B17,FALSE) -> 0.0001392849765 | D17: =IF(AND(ISNUMBER($D$7),$D$7>=B17),_xlfn.NORM.S.DIST(B17,FALSE),NA()) ->  | E17: =IF(AND(ISNUMBER($D$9),$D$9<=B17),_xlfn.NORM.S.DIST(B17,FALSE),NA()) ->  | F17: =IF(AND(ISNUMBER($D$12),ISNUMBER($F$12),$D$12<=B17,$F$12>=B17),_xlfn.NORM.S.DIST(B17,FALSE),NA()) -> 
B18: =B17+0.01 -> -3.98 | C18: 0.0001449475604
B19: -3.97 | C19: 0.0001508252716
B20: -3.96 | C20: 0.0001569256341
B21: -3.95 | C21: 0.0001632564088
B22: -3.94 | C22: 0.0001698255994
B23: -3.93 | C23: 0.0001766414593
B24: -3.92 | C24: 0.000183712498
B25: -3.91 | C25: 0.0001910474879
B26: -3.9 | C26: 0.0001986554714
B27: -3.89 | C27: 0.000206545768
B28: -3.88 | C28: 0.0002147279815
B29: -3.87 | C29: 0.0002232120072
B30: -3.86 | C30: 0.0002320080397
B31: -3.85 | C31: 0.0002411265802
B32: -3.84 | C32: 0.0002505784449
B33: -3.83 | C33: 0.0002603747722
B34: -3.82 | C34: 0.0002705270315
B35: -3.81 | C35: 0.0002810470308
B36: -3.8 | C36: 0.0002919469258
B37: -3.79 | C37: 0.0003032392278
B38: -3.78 | C38: 0.0003149368129
B39: -3.77 | C39: 0.0003270529305
B40: -3.76 | C40: 0.0003396012125
B41: -3.75 | C41: 0.0003525956824
B42: -3.74 | C42: 0.0003660507646
B43: -3.73 | C43: 0.0003799812938
B44: -3.72 | C44: 0.000394402525
B45: -3.71 | C45: 0.0004093301425
B46: -3.7 | C46: 0.0004247802706
B47: -3.69 | C47: 0.0004407694831
B48: -3.68 | C48: 0.0004573148141
B49: -3.67 | C49: 0.0004744337676
B50: -3.66 | C50: 0.0004921443288
B51: -3.65 | C51: 0.0005104649743
B52: -3.64 | C52: 0.0005294146831
B53: -3.63 | C53: 0.0005490129474
B54: -3.62 | C54: 0.0005692797838
B55: -3.61 | C55: 0.0005902357449
B56: -3.6 | C56: 0.0006119019301
B57: -3.59 | C57: 0.0006342999975
B58: -3.58 | C58: 0.0006574521757
B59: -3.57 | C59: 0.0006813812751
B60: -3.56 | C60: 0.0007061107005
B61: -3.55 | C61: 0.0007316644628
B62: -3.54 | C62: 0.0007580671914
B63: -3.53 | C63: 0.0007853441464
B64: -3.52 | C64: 0.0008135212311
B65: -3.51 | C65: 0.0008426250047
B66: -3.5 | C66: 0.000872682695
B67: -3.49 | C67: 0.0009037222113
B68: -3.48 | C68: 0.0009357721569
B69: -3.47 | C69: 0.0009688618429
B70: -3.46 | C70: 0.001003021301
B71: -3.45 | C71: 0.001038281296
B72: -3.44 | C72: 0.00107467334
B73: -3.43 | C73: 0.001112229707
B74: -3.42 | C74: 0.001150983444
B75: -3.41 | C75: 0.001190968386
B76: -3.4 | C76: 0.001232219168
B77: -3.39 | C77: 0.001274771244
B78: -3.38 | C78: 0.001318660892
B79: -3.37 | C79: 0.001363925236
B80: -3.36 | C80: 0.001410602257
B81: -3.35 | C81: =_xlfn.NORM.S.DIST(B81,FALSE) -> 0.001458730805 | D81: =IF(AND(ISNUMBER($D$7),$D$7>=B81),_xlfn.NORM.S.DIST(B81,FALSE),NA()) ->  | E81: =IF(AND(ISNUMBER($D$9),$D$9<=B81),_xlfn.NORM.S.DIST(B81,FALSE),NA()) ->  | F81: =IF(AND(ISNUMBER($D$12),ISNUMBER($F$12),$D$12<=B81,$F$12>=B81),_xlfn.NORM.S.DIST(B81,FALSE),NA()) -> 
B82: =B81+0.01 -> -3.34 | C82: 0.001508350615
B83: -3.33 | C83: 0.001559502322
B84: -3.32 | C84: 0.001612227472
B85: -3.31 | C85: 0.00166656854
B86: -3.3 | C86: 0.001722568939
B87: -3.29 | C87: 0.00178027304
B88: -3.28 | C88: 0.001839726181
B89: -3.27 | C89: 0.001900974683
B90: -3.26 | C90: 0.001964065866
B91: -3.25 | C91: 0.002029048057
B92: -3.24 | C92: 0.002095970613
B93: -3.23 | C93: 0.002164883925
B94: -3.22 | C94: 0.00223583944
B95: -3.21 | C95: 0.002308889668
B96: -3.2 | C96: 0.002384088201
B97: -3.19 | C97: 0.002461489725
B98: -3.18 | C98: 0.002541150029
B99: -3.17 | C99: 0.002623126025
B100: -3.16 | C100: 0.002707475757
B101: -3.15 | C101: 0.002794258415
B102: -3.14 | C102: 0.002883534348
B103: -3.13 | C103: 0.002975365075
B104: -3.12 | C104: 0.003069813301
B105: -3.11 | C105: 0.003166942926
B106: -3.1 | C106: 0.003266819056
B107: -3.09 | C107: 0.003369508021
B108: -3.08 | C108: 0.003475077378
B109: -3.07 | C109: 0.003583595929
B110: -3.06 | C110: 0.00369513373
B111: -3.05 | C111: 0.003809762098
B112: -3.04 | C112: 0.003927553629
B113: -3.03 | C113: 0.0040485822
B114: -3.02 | C114: 0.004172922985
B115: -3.01 | C115: 0.004300652459
B116: -3 | C116: 0.004431848412
B117: -2.99 | C117: 0.004566589955
B118: -2.98 | C118: 0.004704957527
B119: -2.97 | C119: 0.004847032906
B120: -2.96 | C120: 0.004992899214
B121: -2.95 | C121: 0.005142640923
B122: -2.94 | C122: 0.005296343865
B123: -2.93 | C123: 0.005454095235
B124: -2.92 | C124: 0.005615983596
B125: -2.91 | C125: 0.005782098886
B126: -2.9 | C126: 0.00595253242
B127: -2.89 | C127: 0.006127376896
B128: -2.88 | C128: 0.006306726396
B129: -2.87 | C129: 0.006490676391
B130: -2.86 | C130: 0.006679323739
B131: -2.85 | C131: 0.006872766691
B132: -2.84 | C132: 0.007071104886
B133: -2.83 | C133: 0.007274439357
B134: -2.82 | C134: 0.007482872526
B135: -2.81 | C135: 0.007696508202
B136: -2.8 | C136: 0.007915451583
B137: -2.79 | C137: 0.008139809248
B138: -2.78 | C138: 0.008369689155
B139: -2.77 | C139: 0.008605200637
B140: -2.76 | C140: 0.008846454398
B141: -2.75 | C141: 0.009093562502
B142: -2.74 | C142: 0.009346638368
B143: -2.73 | C143: 0.009605796764
B144: -2.72 | C144: 0.009871153795
B145: -2.71 | C145: =_xlfn.NORM.S.DIST(B145,FALSE) -> 0.01014282689 | D145: =IF(AND(ISNUMBER($D$7),$D$7>=B145),_xlfn.NORM.S.DIST(B145,FALSE),NA()) ->  | E145: =IF(AND(ISNUMBER($D$9),$D$9<=B145),_xlfn.NORM.S.DIST(B145,FALSE),NA()) ->  | F145: =IF(AND(ISNUMBER($D$12),ISNUMBER($F$12),$D$12<=B145,$F$12>=B145),_xlfn.NORM.S.DIST(B145,FALSE),NA()) -> 
B146: =B145+0.01 -> -2.7 | C146: 0.01042093481
B147: -2.69 | C147: 0.01070559761
B148: -2.68 | C148: 0.01099693663
B149: -2.67 | C149: 0.0112950745
B150: -2.66 | C150: 0.01160013511
B151: -2.65 | C151: 0.01191224361
B152: -2.64 | C152: 0.01223152635
B153: -2.63 | C153: 0.01255811093
B154: -2.62 | C154: 0.01289212611
B155: -2.61 | C155: 0.01323370184
B156: -2.6 | C156: 0.01358296923
B157: -2.59 | C157: 0.01394006051
B158: -2.58 | C158: 0.01430510899
B159: -2.57 | C159: 0.01467824911
B160: -2.56 | C160: 0.01505961633
B161: -2.55 | C161: 0.01544934713
B162: -2.54 | C162: 0.01584757903
B163: -2.53 | C163: 0.01625445046
B164: -2.52 | C164: 0.01667010084
B165: -2.51 | C165: 0.01709467046
B166: -2.5 | C166: 0.01752830049
B167: -2.49 | C167: 0.01797113295
B168: -2.48 | C168: 0.01842331065
B169: -2.47 | C169: 0.01888497714
B170: -2.46 | C170: 0.01935627673
B171: -2.45 | C171: 0.01983735439
B172: -2.44 | C172: 0.02032835574
B173: -2.43 | C173: 0.02082942699
B174: -2.42 | C174: 0.0213407149
B175: -2.41 | C175: 0.02186236676
B176: -2.4 | C176: 0.02239453029
B177: -2.39 | C177: =_xlfn.NORM.S.DIST(B177,FALSE) -> 0.02293735366 | D177: =IF(AND(ISNUMBER($D$7),$D$7>=B177),_xlfn.NORM.S.DIST(B177,FALSE),NA()) ->  | E177: =IF(AND(ISNUMBER($D$9),$D$9<=B177),_xlfn.NORM.S.DIST(B177,FALSE),NA()) ->  | F177: =IF(AND(ISNUMBER($D$12),ISNUMBER($F$12),$D$12<=B177,$F$12>=B177),_xlfn.NORM.S.DIST(B177,FALSE),NA()) -> 
B178: -2.38 | C178: 0.02349098536
B179: -2.37 | C179: 0.02405557421
B180: -2.36 | C180: 0.02463126931
B181: -2.35 | C181: 0.02521821992
B182: -2.34 | C182: 0.02581657547
B183: -2.33 | C183: 0.0264264855
B184: -2.32 | C184: 0.02704809955
B185: -2.31 | C185: 0.02768156715
B186: -2.3 | C186: 0.02832703774
B187: -2.29 | C187: 0.02898466062
B188: -2.28 | C188: 0.02965458485
B189: -2.27 | C189: 0.03033695923
B190: -2.26 | C190: 0.03103193222
B191: -2.25 | C191: 0.03173965184
B192: -2.24 | C192: 0.03246026564
B193: -2.23 | C193: 0.03319392064
B194: -2.22 | C194: 0.03394076318
B195: -2.21 | C195: 0.03470093895
B196: -2.2 | C196: 0.03547459285
B197: -2.19 | C197: 0.0362618689
B198: -2.18 | C198: 0.03706291025
B199: -2.17 | C199: 0.03787785899
B200: -2.16 | C200: 0.03870685615
B201: -2.15 | C201: 0.03955004159
B202: -2.14 | C202: 0.04040755392
B203: -2.13 | C203: 0.04127953043
B204: -2.12 | C204: 0.04216610696
... 612 more rows

Sheet T-dist-A (hidden)
B1: T DISTRIBUTION
B5: AREA UNDER THE T-DISTRIBUTION | F5: ← | G5: ↑
B7: Degrees of Freedom: | D7: =IF(ISNUMBER('T-distribution'!C5),'T-distribution'!C5) -> FALSE | J7: ±
I8: =_xlfn.T.DIST.2T($F$10,$D$7) ->  | J8: =IF(D9=0,100,IF(I8>0.999,">99.9",IF(I8>0.0005,ROUND(I8,3)*100,"<0.1"))) ->  | K8: =IF(D9=0,"0",IF(D9<0.0005,"0.001",ROUND(F10,3))) -> 0
B9: A t-statistic of : | D9: =IF(ISNUMBER('T-distribution'!C8),'T-distribution'!C8) -> FALSE | G9: has a p-value of: | H9: =IF(AND(ISNUMBER($D$7),ISNUMBER($D$9)),I9,IF(ISNUMBER($D$7),"← enter a t-statistic",IF(ISNUMBER($D$9),"↑ enter the df","← enter a t-statistic & df ↑"))) -> ← enter a t-statistic & df ↑ | I9: =IF(D9=0,100,IF(I8>0.999,">0.999",IF(I8>0.0005,ROUND(I8,3),"<0.001"))) ->  | J9: =IF(AND(ISNUMBER($D$9),ISNUMBER($D$7)),CONCATENATE(J8,"% of the area under the t-distribution is beyond ±",K8),"___% of the area under the t-distribution is beyond ± ___") -> ___% of the area under the t-distribution is beyond ± ___
E10: =IF(AND(ISNUMBER(D9),D9>0),D9*-1,D9) -> FALSE | F10: =IF(AND(ISNUMBER(D9),D9<0),D9*-1, D9) -> FALSE | I10: =_xlfn.T.INV.2T(D11,D7) ->  | J10: =ROUND(D11*100,1) -> 0
B11: To obtain a p-value less than: | D11: =IF(ISNUMBER('T-distribution'!C16),'T-distribution'!C16) -> FALSE | G11: obtain a t-statistic higher than: | H11: =IF(AND(ISNUMBER($D$7),ISNUMBER($D$11)),CONCATENATE("±",I11),IF(ISNUMBER($D$7),"← enter a p-value",IF(ISNUMBER($D$11),"↑ enter the df","← enter a p-value & df ↑"))) -> ← enter a p-value & df ↑ | I11: =IF(I10<0.005,"0.001",ROUND(I10,3)) ->  | J11: =IF(AND(ISNUMBER($D$7),ISNUMBER($D$11)),CONCATENATE(J10,"% of the area under the t-distribution is beyond ±",I11),"___% of the area under the t-distribution is beyond ±___") -> ___% of the area under the t-distribution is beyond ±___
E12: =IF(ISNUMBER(D11),MIN(G12:H12)) -> FALSE | F12: =IF(ISNUMBER(D11),MAX(G12:H12)) -> FALSE | G12: =IF(ISNUMBER(D11),I10) -> FALSE | H12: =IF(ISNUMBER(D11),-1*G12) -> FALSE | I12: =_xlfn.T.DIST.RT($D$13,$D$7) ->  | J12: =IF(I12>0.999,">99.9",IF(I12>0.0005,ROUND(I12,3)*100,"<0.1")) ->  | K12: =ROUND(D13,3) -> 0
B13: A t-statistic of : | D13: =IF(ISNUMBER('T-distribution'!C26),'T-distribution'!C26) -> FALSE | G13: has a p-value of: | H13: =IF(AND(ISNUMBER($D$7),ISNUMBER($D$13)),I13,IF(ISNUMBER($D$7),"← enter a t-statistic",IF(ISNUMBER($D$13),"↑ enter the df","← enter a t-statistic & df ↑"))) -> ← enter a t-statistic & df ↑ | I13: =IF(I12>0.999,">0.999",IF(I12>0.0005,ROUND(I12,3),"<0.001")) ->  | J13: =IF(AND(ISNUMBER($D$13),ISNUMBER($D$7)),CONCATENATE(J12,"% of the area under the t-distribution is to the right of ",K12),"___% of the area under the t-distribution is to the right of ___") -> ___% of the area under the t-distribution is to the right of ___
D14: =IF(ISNUMBER('Z-distribution'!D16),'Z-distribution'!D16,"") ->  | I14: =_xlfn.T.INV(D15,D7)*-1 ->  | J14: =ROUND(D15*100,1) -> 0
B15: To obtain a p-value less than: | D15: =IF(ISNUMBER('T-distribution'!C34),'T-distribution'!C34) -> FALSE | G15: obtain a t- statistic higher than: | H15: =IF(AND(ISNUMBER($D$7),ISNUMBER($D$15)),I15,IF(ISNUMBER($D$7),"← enter a p-value",IF(ISNUMBER($D$15),"↑ enter the df","← enter a p-value & df ↑"))) -> ← enter a p-value & df ↑ | I15: =ROUND(I14,3) ->  | J15: =IF(AND(ISNUMBER($D$7),ISNUMBER($D$15)),CONCATENATE(J14,"% of the area under the t-distribution is to the right of ",I15),"___% of the area under the t-distribution is to the right of ___") -> ___% of the area under the t-distribution is to the right of ___
B18: -4 | C18: =IF(ISNUMBER($D$7),_xlfn.T.DIST(B18,$D$7,FALSE),_xlfn.T.DIST(B18,20,FALSE)) -> 0.0008224743001 | D18: =IF(AND(ISNUMBER($D$7),ISNUMBER($D$9),OR($B18<=$E$10,$B18>$F$10)),C18,NA()) ->  | E18: =IF(AND(ISNUMBER($D$7),ISNUMBER($D$11),OR($B18<=$E$12,$B18>$F$12)),C18,NA()) ->  | F18: =IF(AND(ISNUMBER($D$7),ISNUMBER($D$13),B18>=$D$13),C18,NA()) ->  | G18: =IF(AND(ISNUMBER($D$7),ISNUMBER($D$15),$B18>$I$14),C18,NA()) -> 
B19: =B18+0.01 -> -3.99 | C19: =IF(ISNUMBER($D$7),_xlfn.T.DIST(B19,$D$7,FALSE),_xlfn.T.DIST(B19,20,FALSE)) -> 0.0008418882639 | D19: =IF(AND(ISNUMBER($D$7),ISNUMBER($D$9),OR($B19<=$E$10,$B19>$F$10)),C19,NA()) ->  | E19: =IF(AND(ISNUMBER($D$7),ISNUMBER($D$11),OR($B19<=$E$12,$B19>$F$12)),C19,NA()) ->  | F19: =IF(AND(ISNUMBER($D$7),ISNUMBER($D$13),B19>=$D$13),C19,NA()) ->  | G19: =IF(AND(ISNUMBER($D$7),ISNUMBER($D$15),$B19>$I$14),C19,NA()) -> 
B20: =B19+0.01 -> -3.98 | C20: 0.0008617547591
B21: -3.97 | C21: 0.0008820840562
B22: -3.96 | C22: 0.0009028866482
B23: -3.95 | C23: 0.0009241732543
B24: -3.94 | C24: 0.0009459548251
B25: -3.93 | C25: 0.0009682425466
B26: -3.92 | C26: 0.0009910478451
B27: -3.91 | C27: 0.001014382392
B28: -3.9 | C28: 0.001038258108
B29: -3.89 | C29: 0.001062687169
B30: -3.88 | C30: 0.00108768201
B31: -3.87 | C31: 0.00111325533
B32: -3.86 | C32: 0.0011394201
B33: -3.85 | C33: 0.001166189563
B34: -3.84 | C34: 0.001193577244
B35: -3.83 | C35: 0.001221596953
B36: -3.82 | C36: 0.00125026279
B37: -3.81 | C37: 0.001279589152
B38: -3.8 | C38: 0.001309590739
B39: -3.79 | C39: 0.001340282558
B40: -3.78 | C40: 0.001371679928
B41: -3.77 | C41: 0.001403798489
B42: -3.76 | C42: 0.001436654205
B43: -3.75 | C43: 0.001470263374
B44: -3.74 | C44: 0.001504642627
B45: -3.73 | C45: 0.001539808941
B46: -3.72 | C46: 0.001575779644
B47: -3.71 | C47: 0.001612572417
B48: -3.7 | C48: 0.001650205306
B49: -3.69 | C49: 0.001688696725
B50: -3.68 | C50: 0.001728065464
B51: -3.67 | C51: 0.001768330696
B52: -3.66 | C52: 0.001809511982
B53: -3.65 | C53: 0.001851629281
B54: -3.64 | C54: 0.001894702952
B55: -3.63 | C55: 0.001938753769
B56: -3.62 | C56: 0.001983802918
B57: -3.61 | C57: 0.002029872013
B58: -3.6 | C58: 0.0020769831
B59: -3.59 | C59: 0.002125158661
B60: -3.58 | C60: 0.002174421629
B61: -3.57 | C61: 0.002224795388
B62: -3.56 | C62: 0.002276303786
B63: -3.55 | C63: 0.00232897114
B64: -3.54 | C64: 0.002382822244
B65: -3.53 | C65: 0.00243788238
B66: -3.52 | C66: 0.002494177321
B67: -3.51 | C67: 0.002551733341
B68: -3.5 | C68: 0.002610577228
B69: -3.49 | C69: 0.002670736282
B70: -3.48 | C70: 0.002732238335
B71: -3.47 | C71: 0.002795111751
B72: -3.46 | C72: 0.002859385436
B73: -3.45 | C73: 0.00292508885
B74: -3.44 | C74: 0.002992252013
B75: -3.43 | C75: 0.003060905514
B76: -3.42 | C76: 0.003131080518
B77: -3.41 | C77: 0.003202808779
B78: -3.4 | C78: 0.003276122646
B79: -3.39 | C79: 0.003351055073
B80: -3.38 | C80: 0.003427639624
B81: -3.37 | C81: 0.003505910492
B82: -3.36 | C82: 0.003585902495
B83: -3.35 | C83: =IF(ISNUMBER($D$7),_xlfn.T.DIST(B83,$D$7,FALSE),_xlfn.T.DIST(B83,20,FALSE)) -> 0.003667651097 | D83: =IF(AND(ISNUMBER($D$7),ISNUMBER($D$9),OR($B83<=$E$10,$B83>$F$10)),C83,NA()) ->  | E83: =IF(AND(ISNUMBER($D$7),ISNUMBER($D$11),OR($B83<=$E$12,$B83>$F$12)),C83,NA()) ->  | F83: =IF(AND(ISNUMBER($D$7),ISNUMBER($D$13),B83>=$D$13),C83,NA()) ->  | G83: =IF(AND(ISNUMBER($D$7),ISNUMBER($D$15),$B83>$I$14),C83,NA()) -> 
B84: =B83+0.01 -> -3.34 | C84: 0.003751192409
B85: -3.33 | C85: 0.003836563204
B86: -3.32 | C86: 0.003923800922
B87: -3.31 | C87: 0.004012943681
B88: -3.3 | C88: 0.004104030289
B89: -3.29 | C89: 0.004197100248
B90: -3.28 | C90: 0.004292193769
B91: -3.27 | C91: 0.004389351777
B92: -3.26 | C92: 0.004488615925
B93: -3.25 | C93: 0.0045900286
B94: -3.24 | C94: 0.004693632932
B95: -3.23 | C95: 0.004799472808
B96: -3.22 | C96: 0.004907592879
B97: -3.21 | C97: 0.005018038567
B98: -3.2 | C98: 0.005130856078
B99: -3.19 | C99: 0.005246092414
B100: -3.18 | C100: 0.005363795375
B101: -3.17 | C101: 0.005484013575
B102: -3.16 | C102: 0.005606796449
B103: -3.15 | C103: 0.005732194263
B104: -3.14 | C104: 0.005860258124
B105: -3.13 | C105: 0.005991039988
B106: -3.12 | C106: 0.00612459267
B107: -3.11 | C107: 0.006260969856
B108: -3.1 | C108: 0.006400226106
B109: -3.09 | C109: 0.006542416869
B110: -3.08 | C110: 0.006687598492
B111: -3.07 | C111: 0.006835828225
B112: -3.06 | C112: 0.006987164231
B113: -3.05 | C113: 0.0071416656
B114: -3.04 | C114: 0.00729939235
B115: -3.03 | C115: 0.007460405442
B116: -3.02 | C116: 0.007624766783
B117: -3.01 | C117: 0.007792539241
B118: =B117+0.01 -> -3 | C118: 0.007963786646
B119: -2.99 | C119: 0.008138573805
B120: -2.98 | C120: 0.008316966503
B121: -2.97 | C121: 0.008499031516
B122: -2.96 | C122: 0.008684836618
B123: -2.95 | C123: 0.008874450585
B124: -2.94 | C124: 0.009067943206
B125: -2.93 | C125: 0.009265385286
B126: -2.92 | C126: 0.009466848658
B127: -2.91 | C127: 0.009672406185
B128: -2.9 | C128: 0.009882131766
B129: -2.89 | C129: 0.01009610035
B130: -2.88 | C130: 0.01031438792
B131: -2.87 | C131: 0.01053707154
B132: -2.86 | C132: 0.01076422931
B133: -2.85 | C133: 0.0109959404
B134: -2.84 | C134: 0.01123228506
B135: -2.83 | C135: 0.0114733446
B136: -2.82 | C136: 0.01171920142
B137: -2.81 | C137: 0.01196993899
B138: -2.8 | C138: 0.01222564187
B139: -2.79 | C139: 0.0124863957 | F139: =IF(AND(ISNUMBER($D$7),ISNUMBER($D$13),B139>=$D$13),C139,NA()) ->  | G139: =IF(AND(ISNUMBER($D$7),ISNUMBER($D$15),$B139>$I$14),C139,NA()) -> 
B140: -2.78 | C140: 0.01275228721
B141: -2.77 | C141: 0.01302340423
B142: -2.76 | C142: 0.01329983566
B143: -2.75 | C143: 0.01358167153
B144: -2.74 | C144: 0.01386900293
B145: -2.73 | C145: 0.01416192204
B146: -2.72 | C146: 0.01446052216
B147: -2.71 | C147: =IF(ISNUMBER($D$7),_xlfn.T.DIST(B147,$D$7,FALSE),_xlfn.T.DIST(B147,20,FALSE)) -> 0.01476489767 | D147: =IF(AND(ISNUMBER($D$7),ISNUMBER($D$9),OR($B147<=$E$10,$B147>$F$10)),C147,NA()) ->  | E147: =IF(AND(ISNUMBER($D$7),ISNUMBER($D$11),OR($B147<=$E$12,$B147>$F$12)),C147,NA()) -> 
B148: =B147+0.01 -> -2.7 | C148: 0.01507514402
B149: -2.69 | C149: 0.01539135778
B150: -2.68 | C150: 0.01571363659
B151: -2.67 | C151: 0.01604207916
B152: -2.66 | C152: 0.01637678529
B153: -2.65 | C153: 0.01671785586
B154: -2.64 | C154: 0.01706539281
B155: -2.63 | C155: 0.01741949913
B156: -2.62 | C156: 0.01778027889
B157: -2.61 | C157: 0.01814783718
B158: -2.6 | C158: 0.01852228016
B159: -2.59 | C159: 0.01890371501
B160: -2.58 | C160: 0.01929224991
B161: -2.57 | C161: 0.01968799409
B162: -2.56 | C162: 0.02009105775
B163: -2.55 | C163: 0.02050155209
B164: -2.54 | C164: 0.0209195893
B165: -2.53 | C165: 0.02134528252
B166: -2.52 | C166: 0.02177874582
B167: -2.51 | C167: 0.02222009424
B168: -2.5 | C168: 0.02266944372
B169: -2.49 | C169: 0.02312691109
B170: -2.48 | C170: 0.02359261407
B171: -2.47 | C171: 0.02406667125
B172: -2.46 | C172: 0.02454920206
B173: -2.45 | C173: 0.02504032674
B174: -2.44 | C174: 0.02554016634
B175: -2.43 | C175: 0.02604884269
B176: -2.42 | C176: 0.02656647837
B177: -2.41 | C177: 0.02709319668
B178: -2.4 | C178: 0.02762912163
B179: -2.39 | C179: 0.02817437789
B180: -2.38 | C180: 0.0287290908
B181: -2.37 | C181: 0.02929338629
B182: -2.36 | C182: 0.02986739089
B183: -2.35 | C183: 0.03045123167
B184: -2.34 | C184: 0.03104503623
B185: -2.33 | C185: 0.03164893266
B186: -2.32 | C186: 0.03226304947
B187: -2.31 | C187: 0.03288751561
B188: -2.3 | C188: 0.0335224604
B189: -2.29 | C189: 0.03416801347
B190: -2.28 | C190: 0.03482430478
B191: -2.27 | C191: 0.03549146452
B192: -2.26 | C192: 0.03616962307
B193: -2.25 | C193: 0.036858911
B194: -2.24 | C194: 0.037559459
B195: -2.23 | C195: 0.03827139779
B196: -2.22 | C196: 0.03899485816
B197: -2.21 | C197: 0.03972997082
B198: -2.2 | C198: 0.04047686643
B199: -2.19 | C199: 0.04123567551
B200: -2.18 | C200: 0.04200652838
B201: -2.17 | C201: 0.04278955511
B202: -2.16 | C202: 0.04358488549
B203: -2.15 | C203: 0.04439264892 | F203: =IF(AND(ISNUMBER($D$7),ISNUMBER($D$13),B203>=$D$13),C203,NA()) ->  | G203: =IF(AND(ISNUMBER($D$7),ISNUMBER($D$15),$B203>$I$14),C203,NA()) -> 
B204: -2.14 | C204: 0.04521297438
B205: -2.13 | C205: 0.04604599039
B206: -2.12 | C206: 0.04689182489
... 612 more rows

Sheet F-dist-A (hidden)
B1: F DISTRIBUTION
B5: AREA UNDER THE F DISTRIBUTION
B7: Degrees of Freedom 1: | D7: =IF(ISNUMBER('F-distribution'!C5),'F-distribution'!C5) -> FALSE
B9: Degrees of Freedom 2: | D9: =IF(ISNUMBER('F-distribution'!C7),'F-distribution'!C7) -> FALSE
I10: =_xlfn.F.DIST.RT(D11,D7,D9) ->  | J10: =IF(I10>0.999,">99.9",IF(I10>0.0005,ROUND(I10,3)*100,"<0.1")) ->  | K10: =IF(D11<0.0005,"0.000",ROUND(D11,3)) -> 0
B11: An F-statistic of : | D11: =IF(ISNUMBER('F-distribution'!C9),'F-distribution'!C9) -> FALSE | G11: has a p-value of: | H11: =IF(AND(ISNUMBER($D$7),ISNUMBER($D$9),ISNUMBER($D$11)),I11,IF(AND(ISNUMBER($D$7),ISNUMBER($D$9)),"← enter an F-statistic",IF(ISNUMBER($D$11),"↑ enter the df","← enter an F-statistic & df ↑"))) -> ← enter an F-statistic & df ↑ | I11: =IF(I10>0.999,">0.999",IF(I10>0.0005,ROUND(I10,3),"<0.001")) ->  | J11: =IF(AND(ISNUMBER($D$11),ISNUMBER($D$7),ISNUMBER($D$9)),CONCATENATE(J10,"% of the area under the F distribution is to the right of ",K10),"___% of the area under the F distribution is to the right of ___") -> ___% of the area under the F distribution is to the right of ___
D12: =IF(ISNUMBER('Z-distribution'!D12),'Z-distribution'!D12,"") ->  | I12: =_xlfn.F.INV.RT($D$13,$D$7,$D$9) ->  | J12: =ROUND(D13*100,1) -> 0 | K12: =IF(H13<0.0005,"0.000",ROUND(D13,3)) -> 0
B13: To obtain a p-value less than: | D13: =IF(ISNUMBER('F-distribution'!C17),'F-distribution'!C17) -> FALSE | G13: obtain an F-statistic higher than: | H13: =IF(AND(ISNUMBER($D$7),ISNUMBER($D$9),ISNUMBER($D$13)),ROUND(I12,3),IF(AND(ISNUMBER($D$7),ISNUMBER($D$9)),"← enter a p-value",IF(ISNUMBER($D$13),"↑ enter the df","← enter a p-value & df ↑"))) -> ← enter a p-value & df ↑ | I13: =IF(I12<0.0005,"0.000",ROUND(I12,3)) ->  | J13: =IF(AND(ISNUMBER($D$7),ISNUMBER($D$9),ISNUMBER($D$13)),CONCATENATE(J12,"% of the area under the F distribution is to the right of ",I13),"___% of the area under the F distribution is to the right of ___") -> ___% of the area under the F distribution is to the right of ___
B17: 0 | C17: =IF(AND(ISNUMBER($D$7),ISNUMBER($D$9)),IF($D$7=1,_xlfn.F.DIST(0.05,$D$7,$D$9,FALSE),_xlfn.F.DIST(B17,$D$7,$D$9,FALSE)),_xlfn.F.DIST(B17,5,50,FALSE)) -> 0 | D17: =IF(AND(ISNUMBER($D$7),ISNUMBER($D$9),ISNUMBER($D$11),$B17>=$D$11),C17,NA()) ->  | E17: =IF(AND(ISNUMBER($D$7),ISNUMBER($D$9),ISNUMBER($D$13),B17>=$I$12),C17,NA()) -> 
B18: 0.1 | C18: =IF(AND(ISNUMBER($D$7),ISNUMBER($D$9)),IF($D$7=1,_xlfn.F.DIST(0.05,$D$7,$D$9,FALSE),_xlfn.F.DIST(B18,$D$7,$D$9,FALSE)),_xlfn.F.DIST(B18,5,50,FALSE)) -> 0.1923582211 | D18: =IF(AND(ISNUMBER($D$7),ISNUMBER($D$9),ISNUMBER($D$11),$B18>=$D$11),C18,NA()) -> 
B19: =B18+0.1 -> 0.2 | C19: 0.4149433428
B20: =B19+0.1 -> 0.3 | C20: 0.5829170172
B21: 0.4 | C21: 0.6880526748
B22: 0.5 | C22: 0.7390908289
B23: 0.6 | C23: 0.748624631
B24: 0.7 | C24: 0.7286881465
B25: 0.8 | C25: 0.689334851
B26: 0.9 | C26: 0.6383863643
B27: 1 | C27: 0.581633871
B28: 1.1 | C28: 0.5231854317
B29: 1.2 | C29: 0.4658271283
B30: 1.3 | C30: 0.4113451337
B31: 1.4 | C31: 0.3607922275
B32: 1.5 | C32: 0.3146985995
B33: 1.6 | C33: 0.2732334095
B34: 1.7 | C34: 0.2363255707
B35: 1.8 | C35: 0.2037520974
B36: 1.9 | C36: 0.1752013686
B37: 2 | C37: 0.1503174011
B38: 2.1 | C38: 0.128730006
B39: 2.2 | C39: 0.1100746236 | H39: first cell over .01 | I39: last cell over .01
B40: 2.3 | C40: 0.0940047331 | H40: =MATCH(TRUE,$C$17:$C$917>0.005,0) -> 2 | I40: =LOOKUP(2,1/($C$17:$C$917>=0.0005),ROW(C:C)) -> 57
B41: 2.4 | C41: 0.08019901824 | H41: =INDEX($B$17:$B$917,H40) -> 0.1 | I41: =INDEX($B$17:$B$917,I40) -> 5.6
B42: 2.5 | C42: 0.06836490058 | H42: =IF(ROUNDDOWN(H41,0)>2,ROUNDDOWN(H41,0)-2,0) -> 0 | I42: =ROUNDUP(I41,0) -> 6
B43: 2.6 | C43: 0.058239624 | H43: =(10*H42) -> 0 | I43: =(10*I42)+1 -> 61
B44: 2.7 | C44: 0.04958974227
B45: 2.8 | C45: 0.04220961714
B46: 2.9 | C46: 0.03591935214
B47: 3 | C47: 0.03056245415
B48: 3.1 | C48: 0.02600341825
B49: 3.2 | C49: 0.02212536228
B50: 3.3 | C50: 0.01882778865
B51: 3.4 | C51: 0.01602451713
B52: 3.5 | C52: 0.01364180898
B53: 3.6 | C53: 0.01161668738
B54: 3.7 | C54: 0.009895449358
B55: 3.8 | C55: 0.008432358266
B56: 3.9 | C56: 0.007188502611
B57: 4 | C57: 0.006130805482
B58: 4.1 | C58: 0.00523116861
B59: 4.2 | C59: 0.004465735495
B60: 4.3 | C60: 0.003814259041
B61: 4.4 | C61: 0.003259560253
B62: 4.5 | C62: 0.002787065918
B63: 4.6 | C63: 0.002384414448
B64: 4.7 | C64: 0.00204112035
B65: 4.8 | C65: 0.001748288955
B66: 4.9 | C66: 0.001498374143
B67: 5 | C67: 0.001284972738
B68: 5.1 | C68: 0.00110265016
B69: 5.2 | C69: 0.0009467926509
B70: 5.3 | C70: 0.0008134820758
B71: 5.4 | C71: 0.0006993898866
B72: 5.5 | C72: 0.0006016873291
B73: 5.6 | C73: 0.0005179694158
B74: 5.7 | C74: 0.0004461905557
B75: 5.8 | C75: 0.0003846100518
B76: 5.9 | C76: 0.0003317459502
B77: 6 | C77: 0.0002863359539
B78: 6.1 | C78: 0.0002473043143
B79: 6.2 | C79: 0.0002137337795
B80: 6.3 | C80: 0.0001848418193
B81: 6.4 | C81: 0.0001599604698 | E81: =IF(AND(ISNUMBER($D$7),ISNUMBER($D$9),ISNUMBER($D$13),B81>=$I$12),C81,NA()) -> 
B82: 6.5 | C82: =IF(AND(ISNUMBER($D$7),ISNUMBER($D$9)),IF($D$7=1,_xlfn.F.DIST(0.05,$D$7,$D$9,FALSE),_xlfn.F.DIST(B82,$D$7,$D$9,FALSE)),_xlfn.F.DIST(B82,5,50,FALSE)) -> 0.0001385192401 | D82: =IF(AND(ISNUMBER($D$7),ISNUMBER($D$9),ISNUMBER($D$11),$B82>=$D$11),C82,NA()) -> 
B83: 6.6 | C83: 0.0001200306101
B84: =B83+0.1 -> 6.7 | C84: 0.0001040777222
B85: 6.8 | C85: 9.030393037e-05
B86: 6.9 | C86: 7.840392246e-05
B87: 7 | C87: 6.811617513e-05
B88: 7.1 | C88: 5.921653869e-05
B89: 7.2 | C89: 5.151277974e-05
B90: 7.3 | C90: 4.483993614e-05
B91: 7.4 | C91: 3.905636161e-05
B92: 7.5 | C92: 3.404035554e-05
B93: 7.6 | C93: 2.968728999e-05
B94: 7.7 | C94: 2.590715921e-05
B95: 7.8 | C95: 2.262248828e-05
B96: 7.9 | C96: 1.976654731e-05
B97: 8 | C97: 1.728182573e-05
B98: 8.1 | C98: 1.511872789e-05
B99: 8.2 | C99: 1.32344574e-05
B100: 8.3 | C100: 1.159206219e-05
B101: 8.4 | C101: 1.01596168e-05
B102: 8.5 | C102: 8.909521675e-06
B103: 8.6 | C103: 7.81790236e-06
B104: 8.7 | C104: 6.864094128e-06
B105: 8.8 | C105: 6.030199561e-06
B106: 8.9 | C106: 5.300708556e-06
B107: 9 | C107: 4.662171758e-06
B108: 9.1 | C108: 4.10291973e-06
B109: 9.2 | C109: 3.612821318e-06
B110: 9.3 | C110: 3.183075621e-06
B111: 9.4 | C111: 2.80603277e-06
B112: 9.5 | C112: 2.475039456e-06
B113: 9.6 | C113: 2.184305697e-06
B114: 9.7 | C114: 1.928789856e-06
B115: 9.8 | C115: 1.704099357e-06
B116: 9.9 | C116: 1.506404908e-06
B117: 10 | C117: 1.332366334e-06
B118: 10.1 | C118: 1.179068435e-06
B119: 10.2 | C119: 1.043965458e-06
B120: 10.3 | C120: 9.248330166e-07
B121: 10.4 | C121: 8.197264261e-07
B122: 10.5 | C122: 7.269445766e-07
B123: 10.6 | C123: 6.449985956e-07
B124: 10.7 | C124: 5.725846455e-07
B125: 10.8 | C125: 5.085602981e-07
B126: 10.9 | C126: 4.519240046e-07
B127: 11 | C127: 4.017972443e-07
B128: 11.1 | C128: 3.574089954e-07
B129: 11.2 | C129: 3.18082217e-07
B130: 11.3 | C130: 2.832220761e-07
B131: 11.4 | C131: 2.523056879e-07
B132: 11.5 | C132: 2.24873171e-07
B133: 11.6 | C133: 2.005198442e-07
B134: 11.7 | C134: 1.788894147e-07
B135: 11.8 | C135: 1.596680304e-07
B136: 11.9 | C136: 1.425790824e-07
B137: 12 | C137: 1.273786605e-07
B138: 12.1 | C138: 1.138515796e-07
B139: 12.2 | C139: 1.018079001e-07
B140: 12.3 | C140: 9.107988311e-08
B141: 12.4 | C141: 8.151932122e-08
B142: 12.5 | C142: 7.299519998e-08
B143: 12.6 | C143: 6.539164646e-08
B144: 12.7 | C144: 5.860612943e-08
B145: 12.8 | C145: 5.254787924e-08 | E145: =IF(AND(ISNUMBER($D$7),ISNUMBER($D$9),ISNUMBER($D$13),B145>=$I$12),C145,NA()) -> 
B146: 12.9 | C146: =IF(AND(ISNUMBER($D$7),ISNUMBER($D$9)),IF($D$7=1,_xlfn.F.DIST(0.05,$D$7,$D$9,FALSE),_xlfn.F.DIST(B146,$D$7,$D$9,FALSE)),_xlfn.F.DIST(B146,5,50,FALSE)) -> 4.713650004e-08 | D146: =IF(AND(ISNUMBER($D$7),ISNUMBER($D$9),ISNUMBER($D$11),$B146>=$D$11),C146,NA()) -> 
B147: 13 | C147: 4.230075016e-08
B148: =B147+0.1 -> 13.1 | C148: 3.797746986e-08
B149: 13.2 | C149: 3.411063809e-08
B150: 13.3 | C150: 3.065054241e-08
B151: 13.4 | C151: 2.755304808e-08
B152: 13.5 | C152: 2.477895412e-08
B153: 13.6 | C153: 2.229342586e-08
B154: 13.7 | C154: 2.006549448e-08
B155: 13.8 | C155: 1.806761559e-08
B156: 13.9 | C156: 1.62752795e-08
B157: 14 | C157: 1.46666672e-08
B158: 14.1 | C158: 1.322234636e-08
B159: 14.2 | C159: 1.192500263e-08
B160: 14.3 | C160: 1.075920205e-08
B161: 14.4 | C161: 9.711180919e-09
B162: 14.5 | C162: 8.768659671e-09
B163: 14.6 | C163: 7.920678207e-09
B164: 14.7 | C164: 7.157449932e-09
B165: 14.8 | C165: 6.470232423e-09
B166: 14.9 | C166: 5.851212742e-09
B167: 15 | C167: 5.293405708e-09
B168: 15.1 | C168: 4.790563613e-09
B169: 15.2 | C169: 4.337096065e-09
B170: 15.3 | C170: 3.927998788e-09
B171: 15.4 | C171: 3.55879036e-09
B172: 15.5 | C172: 3.225455961e-09
B173: 15.6 | C173: 2.924397357e-09
B174: 15.7 | C174: 2.65238839e-09
B175: 15.8 | C175: 2.406535362e-09
B176: 15.9 | C176: 2.184241757e-09
B177: 16 | C177: 1.983176813e-09
B178: 16.1 | C178: 1.80124751e-09
B179: 16.2 | C179: 1.636573602e-09
B180: 16.3 | C180: 1.487465338e-09
B181: 16.4 | C181: 1.352403588e-09
B182: 16.5 | C182: 1.230022099e-09
B183: 16.6 | C183: 1.119091652e-09
B184: 16.7 | C184: 1.018505903e-09
B185: 16.8 | C185: 9.272687377e-10
B186: 16.9 | C186: 8.444829548e-10
B187: 17 | C187: 7.69340152e-10
B188: 17.1 | C188: 7.011116729e-10
B189: 17.2 | C189: 6.391405038e-10
B190: 17.3 | C190: 5.828340183e-10
B191: 17.4 | C191: 5.316574772e-10
B192: 17.5 | C192: 4.851282039e-10
B193: 17.6 | C193: 4.428103632e-10
B194: 17.7 | C194: 4.043102778e-10
B195: 17.8 | C195: 3.692722282e-10
B196: 17.9 | C196: 3.373746816e-10
B197: 18 | C197: 3.083269075e-10
B198: 18.1 | C198: 2.818659375e-10
B199: 18.2 | C199: 2.577538343e-10
B200: 18.3 | C200: 2.357752364e-10
B201: 18.4 | C201: 2.157351517e-10
B202: 18.5 | C202: 1.974569724e-10
B203: 18.6 | C203: 1.807806887e-10
B204: 18.7 | C204: 1.655612821e-10
B205: 18.8 | C205: 1.516672778e-10
B206: 18.9 | C206: 1.389794414e-10
B207: 19 | C207: 1.273896048e-10
B208: 19.1 | C208: 1.167996079e-10
... 709 more rows

Sheet Chi-square dist-A (hidden)
B1: CHI-SQUARE DISTRIBUTION
B5: AREA UNDER THE CHI-SQUARE DISTRIBUTION
B7: Degrees of Freedom: | D7: =IF(ISNUMBER('Chi-square distribution'!C5),'Chi-square distribution'!C5) -> FALSE
I8: =_xlfn.CHISQ.DIST.RT($D$9,$D$7) ->  | J8: =IF(I8>0.999,">99.9",IF(I8>0.0005,ROUND(I8,3)*100,"<0.1")) ->  | K8: =IF(D9<0.0005,"0.000",ROUND(D9,3)) -> 0
B9: A chi-square statistic of : | D9: =IF(ISNUMBER('Chi-square distribution'!C7),'Chi-square distribution'!C7) -> FALSE | G9: has a p-value of: | H9: =IF(AND(ISNUMBER($D$7),ISNUMBER($D$9)),I9,IF(ISNUMBER($D$7),"← enter a chi-square statistic",IF(ISNUMBER($D$9),"↑ enter the df","← enter a chi-square statistic & df ↑"))) -> ← enter a chi-square statistic & df ↑ | I9: =IF(I8>0.999,">0.999",IF(I8>0.0005,ROUND(I8,3),"<0.001")) ->  | J9: =IF(AND(ISNUMBER($D$9),ISNUMBER($D$7)),CONCATENATE(J8,"% of the area under the chi-square distribution is to the right of ",K8),"___% of the area under the chi-square distribution is to the right of ___") -> ___% of the area under the chi-square distribution is to the right of ___
D10: =IF(ISNUMBER('Z-distribution'!D12),'Z-distribution'!D12,"") ->  | I10: =_xlfn.CHISQ.INV.RT(D11,D7) ->  | J10: =IF(D11>0.999,">99.9",IF(D11>=0.0005,ROUND(D11*100,1),"<0.1")) -> >99.9
B11: To obtain a p-value less than: | D11: =IF(ISNUMBER('Chi-square distribution'!C15),'Chi-square distribution'!C15) -> FALSE | G11: obtain a chi-square statistic higher than: | H11: =IF(AND(ISNUMBER($D$7),ISNUMBER($D$11)),I11,IF(ISNUMBER($D$7),"← enter a p-value",IF(ISNUMBER($D$11),"↑ enter the df","← enter a p-value & df ↑"))) -> ← enter a p-value & df ↑ | I11: =IF(I10<0.005,"0.000",ROUND(I10,3)) ->  | J11: =IF(AND(ISNUMBER($D$7),ISNUMBER($D$11)),CONCATENATE(J10,"% of the area under the chi-square distribution is to the right of ",I11),"___% of the area under the chi-square distribution is to the right of ___") -> ___% of the area under the chi-square distribution is to the right of ___
B15: 0 | C15: =IF(ISNUMBER($D$7),IF($D$7=1,_xlfn.CHISQ.DIST(0.05,D7,FALSE),_xlfn.CHISQ.DIST(B15,$D$7,FALSE)),_xlfn.CHISQ.DIST(B15,3,FALSE)) -> 0 | D15: =IF(AND(ISNUMBER($D$7),ISNUMBER($D$9),$B15>=$D$9),C15,NA()) ->  | E15: =IF(AND(ISNUMBER($D$7),ISNUMBER($D$11),B15>=$I$10),C15,NA()) -> 
B16: 0.1 | C16: =IF(ISNUMBER($D$7),_xlfn.CHISQ.DIST(B16,$D$7,FALSE),_xlfn.CHISQ.DIST(B16,3,FALSE)) -> 0.1200038948 | D16: =IF(AND(ISNUMBER($D$7),ISNUMBER($D$9),$B16>=$D$9),C16,NA()) ->  | E16: =IF(AND(ISNUMBER($D$7),ISNUMBER($D$11),B16>=$I$10),C16,NA()) -> 
B17: =B16+0.1 -> 0.2 | C17: =IF(ISNUMBER($D$7),_xlfn.CHISQ.DIST(B17,$D$7,FALSE),_xlfn.CHISQ.DIST(B17,3,FALSE)) -> 0.1614342259 | D17: =IF(AND(ISNUMBER($D$7),ISNUMBER($D$9),$B17>=$D$9),C17,NA()) -> 
B18: =B17+0.1 -> 0.3 | C18: 0.1880730298
B19: 0.4 | C19: 0.206576619
B20: 0.5 | C20: 0.2196956447
B21: 0.6 | C21: 0.2289271736
B22: 0.7 | C22: 0.2352101274
B23: 0.8 | C23: 0.2391868319
B24: 0.9 | C24: 0.2413230489
B25: 1 | C25: 0.2419707245
B26: 1.1 | C26: 0.2414039897
B27: 1.2 | C27: 0.2398413167
B28: 1.3 | C28: 0.2374599263
B29: 1.4 | C29: 0.2344055803
B30: 1.5 | C30: 0.2307994842
B31: 1.6 | C31: 0.2267433045
B32: 1.7 | C32: 0.2223229093
B33: 1.8 | C33: 0.2176112205
B34: 1.9 | C34: 0.2126704297
B35: 2 | C35: 0.2075537487
B36: 2.1 | C36: 0.2023068124
B37: 2.2 | C37: 0.1969688168 | H37: first cell over .01 | I37: last cell over .01
B38: 2.3 | C38: 0.1915734541 | H38: =MATCH(TRUE,$C$15:$C$915>0.005,0) -> 2 | I38: =LOOKUP(2,1/($C$15:$C$915>0.005),ROW(C:C)) -> 112
B39: 2.4 | C39: 0.1861496862 | H39: =INDEX($B$15:$B$915,H38) -> 0.1 | I39: =INDEX($B$15:$B$915,I38) -> 11.1
B40: 2.5 | C40: 0.1807223927 | H40: =IF(ROUNDDOWN(H39,0)>2,ROUNDDOWN(H39,0)-2,0) -> 0 | I40: =ROUNDUP(I39,0) -> 12
B41: 2.6 | C41: 0.1753129159 | H41: =(10*H40) -> 0 | I41: =(10*I40)+1 -> 121
B42: 2.7 | C42: 0.1699395239
B43: 2.8 | C43: 0.1646178051
B44: 2.9 | C44: 0.1593610072
B45: 3 | C45: 0.1541803298
B46: 3.1 | C46: 0.1490851772
B47: 3.2 | C47: 0.1440833787
B48: 3.3 | C48: 0.1391813808
B49: 3.4 | C49: 0.134384415
B50: 3.5 | C50: 0.1296966458
B51: 3.6 | C51: 0.1251213002
B52: 3.7 | C52: 0.1206607822
B53: 3.8 | C53: 0.116316774
B54: 3.9 | C54: 0.1120903253
B55: 4 | C55: 0.107981933
B56: 4.1 | C56: 0.103991611
B57: 4.2 | C57: 0.1001189529
B58: 4.3 | C58: 0.09636318758
B59: 4.4 | C59: 0.09272322831
B60: 4.5 | C60: 0.08919771692
B61: 4.6 | C61: 0.08578506275
B62: 4.7 | C62: 0.08248347747
B63: 4.8 | C63: 0.07929100599
B64: 4.9 | C64: 0.07620555409
B65: 5 | C65: 0.07322491281
B66: 5.1 | C66: 0.0703467803
B67: 5.2 | C67: 0.06756878112
B68: 5.3 | C68: 0.06488848337
B69: 5.4 | C69: 0.06230341393
B70: 5.5 | C70: 0.05981107186
B71: 5.6 | C71: 0.05740894025
B72: 5.7 | C72: 0.05509449672
B73: 5.8 | C73: 0.05286522258
B74: 5.9 | C74: 0.05071861085
B75: 6 | C75: 0.04865217333
B76: 6.1 | C76: 0.04666344666
B77: 6.2 | C77: 0.04474999763
B78: 6.3 | C78: 0.04290942773
B79: 6.4 | C79: 0.04113937701
B80: 6.5 | C80: 0.03943752737 | E80: =IF(AND(ISNUMBER($D$7),ISNUMBER($D$11),B80>=$I$10),C80,NA()) -> 
B81: 6.6 | C81: =IF(ISNUMBER($D$7),_xlfn.CHISQ.DIST(B81,$D$7,FALSE),_xlfn.CHISQ.DIST(B81,3,FALSE)) -> 0.03780160531 | D81: =IF(AND(ISNUMBER($D$7),ISNUMBER($D$9),$B81>=$D$9),C81,NA()) -> 
B82: =B81+0.1 -> 6.7 | C82: 0.03622938424
B83: 6.8 | C83: 0.03471868629
B84: 6.9 | C84: 0.0332673838
B85: 7 | C85: 0.03187340045
B86: 7.1 | C86: 0.03053471209
B87: 7.2 | C87: 0.0292493473
B88: 7.3 | C88: 0.0280153877
B89: 7.4 | C89: 0.02683096808
B90: 7.5 | C90: 0.02569427633
B91: 7.6 | C91: 0.02460355315
B92: 7.7 | C92: 0.02355709173
B93: 7.8 | C93: 0.02255323721
B94: 7.9 | C94: 0.02159038605
B95: 8 | C95: 0.02066698535
B96: 8.1 | C96: 0.01978153203
B97: 8.2 | C97: 0.01893257196
B98: 8.3 | C98: 0.01811869908
B99: 8.4 | C99: 0.01733855438
B100: 8.5 | C100: 0.01659082493
B101: 8.6 | C101: 0.01587424282
B102: 8.7 | C102: 0.0151875841
B103: 8.8 | C103: 0.01452966769
B104: 8.9 | C104: 0.01389935428
B105: 9 | C105: 0.01329554524
B106: 9.1 | C106: 0.01271718149
B107: 9.2 | C107: 0.01216324243
B108: 9.3 | C108: 0.01163274476
B109: 9.4 | C109: 0.01112474148
B110: 9.5 | C110: 0.01063832073
B111: 9.6 | C111: 0.01017260472
B112: 9.7 | C112: 0.009726748703
B113: 9.8 | C113: 0.009299939908
B114: 9.9 | C114: 0.008891396505
B115: 10 | C115: 0.008500366603
B116: 10.1 | C116: 0.008126127255
B117: 10.2 | C117: 0.007767983493
B118: 10.3 | C118: 0.007425267369
B119: 10.4 | C119: 0.00709733704
B120: 10.5 | C120: 0.00678357585
B121: 10.6 | C121: 0.006483391456
B122: 10.7 | C122: 0.006196214967
B123: 10.8 | C123: 0.005921500105
B124: 10.9 | C124: 0.005658722389
B125: 11 | C125: 0.005407378351
B126: 11.1 | C126: 0.005166984761
B127: 11.2 | C127: 0.004937077885
B128: 11.3 | C128: 0.004717212762
B129: 11.4 | C129: 0.004506962501
B130: 11.5 | C130: 0.004305917603
B131: 11.6 | C131: 0.004113685306
B132: 11.7 | C132: 0.003929888943
B133: 11.8 | C133: 0.003754167332
B134: 11.9 | C134: 0.003586174179
B135: 12 | C135: 0.0034255775
B136: 12.1 | C136: 0.003272059071
B137: 12.2 | C137: 0.003125313886
B138: 12.3 | C138: 0.002985049641
B139: 12.4 | C139: 0.002850986236
B140: 12.5 | C140: 0.002722855288
B141: 12.6 | C141: 0.002600399671
B142: 12.7 | C142: 0.002483373064
B143: 12.8 | C143: 0.002371539521
B144: 12.9 | C144: 0.002264673054 | E144: =IF(AND(ISNUMBER($D$7),ISNUMBER($D$11),B144>=$I$10),C144,NA()) -> 
B145: 13 | C145: =IF(ISNUMBER($D$7),_xlfn.CHISQ.DIST(B145,$D$7,FALSE),_xlfn.CHISQ.DIST(B145,3,FALSE)) -> 0.002162557231 | D145: =IF(AND(ISNUMBER($D$7),ISNUMBER($D$9),$B145>=$D$9),C145,NA()) -> 
B146: =B145+0.1 -> 13.1 | C146: 0.00206498479
B147: 13.2 | C147: 0.00197175727
B148: 13.3 | C148: 0.00188268465
B149: 13.4 | C149: 0.001797585003
B150: 13.5 | C150: 0.001716284172
B151: 13.6 | C151: 0.001638615441
B152: 13.7 | C152: 0.00156441924
B153: 13.8 | C153: 0.001493542839
B154: 13.9 | C154: 0.001425840074
B155: 14 | C155: 0.001361171071
B156: 14.1 | C156: 0.001299401982
B157: 14.2 | C157: 0.001240404738
B158: 14.3 | C158: 0.001184056807
B159: 14.4 | C159: 0.00113024096
B160: 14.5 | C160: 0.00107884505
B161: 14.6 | C161: 0.001029761797
B162: 14.7 | C162: 0.0009828885847
B163: 14.8 | C163: 0.0009381272635
B164: 14.9 | C164: 0.0008953839594
B165: 15 | C165: 0.0008545688949
B166: 15.1 | C166: 0.000815596214
B167: 15.2 | C167: 0.0007783838155
B168: 15.3 | C168: 0.0007428531934
B169: 15.4 | C169: 0.0007089292829
B170: 15.5 | C170: 0.0006765403132
B171: 15.6 | C171: 0.000645617667
B172: 15.7 | C172: 0.0006160957446
B173: 15.8 | C173: 0.0005879118342
B174: 15.9 | C174: 0.0005610059881
B175: 16 | C175: 0.0005353209031
B176: 16.1 | C176: 0.0005108018065
B177: 16.2 | C177: 0.0004873963468
B178: 16.3 | C178: 0.0004650544887
B179: 16.4 | C179: 0.0004437284127
B180: 16.5 | C180: 0.0004233724191
B181: 16.6 | C181: 0.0004039428358
B182: 16.7 | C182: 0.0003853979298
B183: 16.8 | C183: 0.0003676978231
B184: 16.9 | C184: 0.0003508044114
B185: 17 | C185: 0.000334681287
B186: 17.1 | C186: 0.0003192936641
B187: 17.2 | C187: 0.0003046083084
B188: 17.3 | C188: 0.0002905934687
B189: 17.4 | C189: 0.0002772188116
B190: 17.5 | C190: 0.0002644553599
B191: 17.6 | C191: 0.0002522754323
B192: 17.7 | C192: 0.0002406525867
B193: 17.8 | C193: 0.0002295615656
B194: 17.9 | C194: 0.0002189782437
B195: 18 | C195: 0.0002088795779
B196: 18.1 | C196: 0.0001992435596
B197: 18.2 | C197: 0.0001900491688
B198: 18.3 | C198: 0.0001812763305
B199: 18.4 | C199: 0.0001729058725
B200: 18.5 | C200: 0.0001649194859
B201: 18.6 | C201: 0.0001572996862
B202: 18.7 | C202: 0.0001500297768
B203: 18.8 | C203: 0.0001430938144
B204: 18.9 | C204: 0.0001364765747
B205: 19 | C205: 0.0001301635211
B206: 19.1 | C206: 0.0001241407736
B207: 19.2 | C207: 0.0001183950796
... 708 more rows
